{"text_format":"1","workbook":"xlsx","n_sheets":6,"sheets":["CLASSIFICAÇÃO GERAL 2025","jun2025","jul2025","ago2025","set2025","out2025"],"not_rendered":{"charts":0,"images":2,"macros":1,"external_links":0,"defined_names":1,"comments":0,"pivot_tables":0},"unopened":[],"bounds":{"document_bytes":16777216,"sheet_cells":100000,"rows_first":2000,"rows_last":500,"rows_between":2000,"halvings":0,"cell_chars":16384,"cell_head_chars":4096},"cells_cut":0,"cells_raw":0,"read":"whole","date_system":"1900"}

{"sheet":"CLASSIFICAÇÃO GERAL 2025","index":0,"n_rows":103,"n_cols":5,"rows_kept":103,"cut":false,"hidden":false,"merged":[[0,0,0,4],[1,0,1,4]]}
["CLASSIFICAÇÃO GERAL ACPA – TEMPORADA 2025 DOMINGO"]
["COLEIRO FIBRA","Pássaro","Proprietário","Origem","Pontos"]
["POSIÇÃO","NOME DO PÁSSARO","NOME DO PROPRIETÁRIO","ORIGEM (CIDADE)","PONTUAÇÃO"]
["1º","FANTASMA","CLOVIS/RODRIGO","TRÊS RIOS",{"$f":"28+26+26+28+14+26+30","v":178}]
["2º","MUTLEY","MARCÃO","JUIZ DE FORA",{"$f":"30+30+22+30","v":112}]
["3º","CAVIAR","BRUNO","TRÊS RIOS",{"$f":"24+19+23+22+23","v":111}]
["4º","FURIOSO","LI","BARBACENA",{"$f":"24+21+16+30","v":91}]
["5º","AMOSTRADINHO","PAULINHO/ARTHUR","TRÊS RIOS",{"$f":"16+28+21+15","v":80}]
["6º","FORASTEIRO","WL FAMÍLIA MINGAL","PARAÍBA DO SUL",{"$f":"30+21+28","v":79}]
["7º","MAGO","SILVIO","SANTOS DUMONT",{"$f":"28+20+28","v":76}]
["8º","PADRINHO","LI","BARBACENA",{"$f":"26+24+23","v":73}]
["9º","MALUCO","ANDRÉ/ERICK","PARAÍBA DO SUL/M. BARBOSA",{"$f":"22+24+26","v":72}]
["10º","REI DO FURDUNÇO","WILLIAN","TRÊS RIOS",{"$f":"15+22+16+18","v":71}]
["11º","PRESTO","SÍLVIO","SANTOS DUMONT",{"$f":"22+26+17","v":65}]
["12º","LOCOMOTIVA","CLOVIS/RODRIGO","TRÊS RIOS",{"$f":"23+14+24","v":61}]
["13º","FAKE NEWS","MOACIR/MARCOS","GUARARÁ",{"$f":"28+28","v":56}]
["14º","CHUCALHO DE COBRA","LUCIMAR/LUIZ HENRIQUE","TRÊS RIOS",{"$f":"19+15+21","v":55}]
["15º","PEGA FIRME","ÍTALO SANTOS","PARAÍBA DO SUL",{"$f":"15+14+21","v":50}]
["16º","IMPÉRIO","LUIZINHO","PETRÓPOLIS",{"$f":"20+16+13","v":49}]
["17º","JAGUAR","JUNINHO/RUAN","T. RIOS/MAR DE ESPANHA",{"$f":"16+13+19","v":48}]
["18º","MENINO DO MORRO","VLADEMIR/GABRIEL","PARAÍBA DO SUL",{"$f":"26+22","v":48}]
["19º","FARRAPO DOIDO","RODRIGO/BRUNO","PETRÓPOLIS",{"$f":"13+15+17","v":45}]
["20º","DO BRONX","PABLO","ITAIPAVA",{"$f":"23+20","v":43}]
["21º","JHON NETO","MATHEUS/JEFERSON","PARAÍBA DO SUL",{"$f":"19+24","v":43}]
["22º","CAPOEIRA","BAIANO","VASSOURAS",{"$f":"23+18","v":41}]
["23º","XODÓ","GUSTAVO/GILSON","TRÊS RIOS/S. DUMONT",{"$f":"23+18","v":41}]
["24º","GAGUINHO","FABINHO","TRÊS RIOS",{"$f":"19+21","v":40}]
["25º","MAGO","RAMON DINIZ/YGOR TARDELLI","ANTA",{"$f":"22+17","v":39}]
["26º","BIGODINHO","PIA","SANTOS DUMONT",{"$f":"18+16","v":34}]
["27º","COISA LINDA","JUNINHO","TRÊS RIOS",30]
["28º","COMENDADOR","LUCAS","MATIAS BARBOSA",{"$f":"17+13","v":30}]
["29º","FARAÓ","ANDRÉ LUÍS","PARAÍBA DO SUL",30]
["30º","VINGADOR","SÍLVIO","SANTOS DUMONT",{"$f":"15+13","v":28}]
["31º","PÉROLA NEGRA","ROMÁRIO OLIVEIRA","PETRÓPOLIS",26]
["32º","BAIANO","REINALDO","JUIZ DE FORA",24]
["33º","TIK TOK","RAFAEL SOUZA","BARBACENA",24]
["34º","FAKE NEWS","PEDRO/GUSTAVO","JUIZ DE FORA",23]
["35º","PANTERA NEGRA","PABLO","ITAIPAVA",22]
["36º","CORINGA","ERICK/JOVEM","MATIAS BARBOSA",21]
["37º","GEMADA","LI","BARBACENA",21]
["38º","ALMIRANTE","JONAS SAMPAIO","PARAÍBA DO SUL",20]
["39º","ESPOLETA","RAFAEL SOUZA","NITERÓI",20]
["40º","GAROTO","BRUNO","TRÊS RIOS",20]
["41º","MAGNÍFICO","CH FAMÍLIA MINGAL","PARAÍBA DO SUL",20]
["42º","PIT BULL","DIEGO NEVES","JUIZ DE FORA",20]
["43º","DELÍRIO","ROMÁRIO OLIVEIRA","PETRÓPOLIS",19]
["44º","FERRARI","CT DOS MOLEQUES","PARAÍBA DO SUL",19]
["45º","JOIA RARA","JUNINHO","TRÊS RIOS",19]
["46º","CEIFADOR","BRUNO/RODRIGO","PETRÓPOLIS",18]
["47º","PATRÃO","WL FAMÍLIA MINGAL","PARAÍBA DO SUL",18]
["48º","PIVETE","GUSTAVO/GILSON","TRÊS RIOS/S. DUMONT",18]
["49º","REI DA RUA","ANDRÉ AGUIAR","PARAÍBA DO SUL",18]
["50º","HERÓI DE GUERRA","BRUNO/RODRIGO","PETRÓPOLIS",17]
["51º","JIRAIA","GABRIEL/TIAGO","PARAÍBA DO SUL",17]
["52º","SAGACIDADE","FLÁVIO JR","JUIZ DE FORA",17]
["53º","SHEIK","JONAS","TRÊS RIOS",17]
["54º","BMW","CT ALPHA","PARAÍBA DO SUL",16]
["55º","PODEROSO CHEFINHO","RODRIGO/BRUNO","PETRÓPOLIS",16]
["56º","CORONEL","DANIEL/LUCAS","JUIZ DE FORA",15]
["57º","REALEZA","VINÍCIUS","AREAL",15]
["58º","BELGA","RODRIGO/BRUNO","PETRÓPOLIS",14]
["59º","CHARADA","HENRIQUE","PARAÍBA DO SUL",14]
["60º","CLONE","GIBA","TRÊS RIOS",14]
["61º","IMPERADOR","GUSTAVO/GILSON","TRÊS RIOS/S. DUMONT",14]
["62º","POLÊMICO","DHACO","PARAÍBA DO SUL",14]
["63º","BISON","NATHAN","LEVY GASPARIAN",13]
["64º","BLINDADO","SAMUEL","SANTOS DUMONT",13]
["65º","REI DAVI","IGOR","PARAÍBA DO SUL",13]
["66º"]
["67º"]
["68º"]
["69º"]
["70º"]
["71º"]
["72º"]
["73º"]
["74º"]
["75º"]
["76º"]
["77º"]
["78º"]
["79º"]
["80º"]
["81º"]
["82º"]
["83º"]
["84º"]
["85º"]
["86º"]
["87º"]
["88º"]
["89º"]
["90º"]
["91º"]
["92º"]
["93º"]
["94º"]
["95º"]
["96º"]
["97º"]
["98º"]
["99º"]
["100º"]

{"sheet":"jun2025","index":1,"n_rows":17,"n_cols":6,"rows_kept":17,"cut":false,"hidden":false,"merged":[[0,0,0,5]]}
["29/06/2025 (DOMINGO)"]
["POS.","PÁSSARO","PROPRIETÁRIO","ORIGEM","CANTOS","PONTOS"]
["1º","REI","RATINHO","VALENÇA",140,30]
["2º","SINISTRO","NELSINHO","MAR DE ESPANHA",136,28]
["3º","BISTURO","GABRIEL/DJ RODRIGO","PARAÍBA DO SUL",135,26]
["4º","MANDA CHUVA","RODRIGO","PATY DO ALFERES",130,24]
["5º","VENENO","GABRIEL/LEANDRO","PARAÍBA DO SUL",130,23]
["6º","WOLVERINE","KAIAN","PATY DO ALFERES",114,22]
["7º","ZELDA","RODRIGO/BRUNO","PETRÓPOLIS",105,21]
["8º","CAMPEÃO","FÁBIO","TRÊS RIOS",46,20]
["9º"]
["10º"]
["11º"]
["12º"]
["13º"]
["14º"]
["15º"]

{"sheet":"jul2025","index":2,"n_rows":32,"n_cols":27,"rows_kept":32,"cut":false,"hidden":false,"merged":[[0,0,0,5],[0,7,0,12],[0,14,0,19],[0,21,0,26]]}
["06/07/2025 (DOMINGO)",null,null,null,null,null,null,"13/07/2025 (DOMINGO)",null,null,null,null,null,null,"20/07/2025 (DOMINGO)",null,null,null,null,null,null,"27/07/2025 (DOMINGO)"]
["POS.","PÁSSARO","PROPRIETÁRIO","ORIGEM","CANTOS","PONTOS",null,"POS.","PÁSSARO","PROPRIETÁRIO","ORIGEM","CANTOS","PONTOS",null,"POS.","PÁSSARO","PROPRIETÁRIO","ORIGEM","CANTOS","PONTOS",null,"POS.","PÁSSARO","PROPRIETÁRIO","ORIGEM","CANTOS","PONTOS"]
["1º","GPS","VALÉRIO","PETRÓPOLIS",142,30,null,"1º","MANDA CHUVA","RODRIGO","PATY DO ALFERES",151,30,null,"1º","PEPE","EULER","TRÊS RIOS",235,30,null,"1º","JJ","PLISCILEY","LAVRAS",242,30]
["2º","GLADIADOR","BRUNO/RODRIGO","PETRÓPOLIS",115,28,null,"2º","GPS","VALÉRIO","PETRÓPOLIS",147,28,null,"2º","DILÚVIO","REINALDO","BARBACENA",155,28,null,"2º","FURIOSO","LI","BARBACENA",218,28]
["3º","MALVADÃO","BRUNO/RODRIGO","PETRÓPOLIS",113,26,null,"3º","SANTA FE","GUSTAVO/GILSON","TRÊS RIOS",110,26,null,"3º","JHON NETO","MATHEUS/JEFERSON","PARAÍBA DO SUL",151,26,null,"3º","PEPE","EULER","TRÊS RIOS",165,26]
["4º","REI","RATINHO","VALENÇA",87,24,null,"4º","LIGEIRINHO","EMERSON","PARAÍBA DO SUL",89,24,null,"4º","LIGEIRINHO","EMERSON","PARAÍBA DO SUL",117,24,null,"4º","BISTURI","GABRIEL/DJ RODRIGO","PARAÍBA DO SUL",150,24]
["5º","PAC MAN","GILSON/GUSTAVO","SANTOS DUMONT",74,23,null,"5º","MAGNÍFICO","CH FAMÍLIA MINGAL","PARAÍBA DO SUL",80,23,null,"5º","MÁGICO","FÁBIO","TRÊS RIOS",110,23,null,"5º","HINIKEN","PLISCILEY","LAVRAS",146,23]
["6º","MAGNÍFICO","CH FAMÍLIA MINGAL","PARAÍBA DO SUL",60,22,null,"6º","CAMPEÃO","FÁBIO","TRÊS RIOS",74,22,null,"6º","JAMELÃO","CH/FAMÍLIA MINGAL","PARAÍBA DO SUL",100,22,null,"6º","FAKE NEWS","PLISCILEY","LAVRAS",142,22]
["7º","CAMPEÃO","FÁBIO","TRÊS RIOS",58,21,null,"7º","AMOSTRADINHO","PAULINHO","TRÊS RIOS",74,21,null,"7º","REI","GUSTAVO/GILSON","TRÊS RIOS",98,21,null,"7º","MALUQUINHO","GIBA","TRÊS RIOS",141,21]
["8º","BRAHMA","TIAGUINHO","JUIZ DE FORA",53,20,null,"8º","MATUE","LOIRINHO","PARAÍBA DO SUL",70,20,null,"8º","BISTURI","GABRIEL/DJ RODRIGO","PARAÍBA DO SUL",93,20,null,"8º","TAURUS","DOUGLAS","JUIZ DE FORA",140,20]
["9º",null,null,null,null,null,null,"9º","JOIA RARA","JUNINHO","TRÊS RIOS",69,19,null,"9º","MAGNÍFICO","CH/FAMÍLIA MINGAL","PARAÍBA DO SUL",93,19,null,"9º","JAMELÃO","CH FAMÍLIA MINGAL","PARAÍBA DO SUL",140,19]
["10º",null,null,null,null,null,null,"10º","LACOSTE","GILSON/GUSTAVO","SANTOS DUMONT",41,18,null,"10º","PATRÃO","FAMÍLIA MINGAL","PARAÍBA DO SUL",90,18,null,"10º","DILÚVIO","REINALDO","BARBACENA",131,18]
["11º",null,null,null,null,null,null,"11º",null,null,null,null,null,null,"11º","TAURUS","DOUGLAS","JUIZ DE FORA",88,17,null,"11º","PEDRINHO","LI","BARBACENA",131,17]
["12º",null,null,null,null,null,null,"12º",null,null,null,null,null,null,"12º","MALUQUINHO","GIBA","TRÊS RIOS",86,16,null,"12º","ZUMBI","FAMÍLIA HONORATO","PARAÍBA DO SUL",130,16]
["13º",null,null,null,null,null,null,"13º",null,null,null,null,null,null,"13º","BOCA RICA","WILLIAN","TRÊS RIOS",68,15,null,"13º","JOIA RARA","JUNINHO","TRÊS RIOS",130,15]
["14º",null,null,null,null,null,null,"14º",null,null,null,null,null,null,"14º","ZUMBI","FAMÍLIA HONORATO","PARAÍBA DO SUL",61,14,null,"14º","RAIO","LUIS/ZECA","CHIADOR",125,14]
["15º",null,null,null,null,null,null,"15º",null,null,null,null,null,null,"15º","ZÉ INACIO","EULER","TRÊS RIOS",45,13,null,"15º","OUSADIA","EDIMAR LEITEIRO","PETRÓPOLIS",122,13]
["16º",null,null,null,null,null,null,"16º",null,null,null,null,null,null,"16º","GLADIADOR","BRUNO/RODRIGO","PETRÓPOLIS",43,null,null,"16º","CHUCALHO DE COBRA","LUCIMAR","TRÊS RIOS",122]
["17º",null,null,null,null,null,null,"17º",null,null,null,null,null,null,"17º",null,null,null,null,null,null,"17º","GPS","VALÉRIO","PETRÓPOLIS",119]
["18º",null,null,null,null,null,null,"18º",null,null,null,null,null,null,"18º",null,null,null,null,null,null,"18º","BOLT","RODRIGO/BRUNO","PETRÓPOLIS",116]
["19º",null,null,null,null,null,null,"19º",null,null,null,null,null,null,"19º",null,null,null,null,null,null,"19º","AMOSTRADINHO","PAULINHO","TRÊS RIOS",109]
["20º",null,null,null,null,null,null,"20º",null,null,null,null,null,null,"20º",null,null,null,null,null,null,"20º","IMAGINÁRIO","FÁBIO","PETRÓPOLIS",107]
["21º",null,null,null,null,null,null,"21º",null,null,null,null,null,null,"21º",null,null,null,null,null,null,"21º","CALIBRE 12","HENRIQUE","ANTA",104]
["22º",null,null,null,null,null,null,"22º",null,null,null,null,null,null,"22º",null,null,null,null,null,null,"22º","JHON NETO","MATHEUS/JEFERSON","PARAÍBA DO SUL",102]
["23º",null,null,null,null,null,null,"23º",null,null,null,null,null,null,"23º",null,null,null,null,null,null,"23º","MÁGICO","FÁBIO","TRÊS RIOS",101]
["24º",null,null,null,null,null,null,"24º",null,null,null,null,null,null,"24º",null,null,null,null,null,null,"24º","EL TORO","IGOR","PARAÍBA DO SUL",81]
["25º",null,null,null,null,null,null,"25º",null,null,null,null,null,null,"25º",null,null,null,null,null,null,"25º","MAGNÍFICO","CH FAMÍLIA MINGAL","PARAÍBA DO SUL",80]
["26º",null,null,null,null,null,null,"26º",null,null,null,null,null,null,"26º",null,null,null,null,null,null,"26º","CLONE","GIBA","TRÊS RIOS",76]
["27º",null,null,null,null,null,null,"27º",null,null,null,null,null,null,"27º",null,null,null,null,null,null,"27º","VENENO","GABRIEL/LEANDRO","PARAÍBA DO SUL",65]
["28º",null,null,null,null,null,null,"28º",null,null,null,null,null,null,"28º",null,null,null,null,null,null,"28º","REI","CLAUDINHO","TRÊS RIOS",34]
["29º",null,null,null,null,null,null,"29º",null,null,null,null,null,null,"29º",null,null,null,null,null,null,"29º"]
["30º",null,null,null,null,null,null,"30º",null,null,null,null,null,null,"30º",null,null,null,null,null,null,"30º"]

{"sheet":"ago2025","index":3,"n_rows":42,"n_cols":34,"rows_kept":42,"cut":false,"hidden":false,"merged":[[0,0,0,5],[0,7,0,12],[0,14,0,19],[0,21,0,26],[0,28,0,33]]}
["03/08/2025 (DOMINGO)",null,null,null,null,null,null,"10/08/2025 (DOMINGO)",null,null,null,null,null,null,"17/08/2025 (DOMINGO)",null,null,null,null,null,null,"24/08/2025 (DOMINGO)",null,null,null,null,null,null,"31/08/2025 (DOMINGO)"]
["POS.","PÁSSARO","PROPRIETÁRIO","ORIGEM","CANTOS","PONTOS",null,"POS.","PÁSSARO","PROPRIETÁRIO","ORIGEM","CANTOS","PONTOS",null,"POS.","PÁSSARO","PROPRIETÁRIO","ORIGEM","CANTOS","PONTOS",null,"POS.","PÁSSARO","PROPRIETÁRIO","ORIGEM","CANTOS","PONTOS",null,"POS.","PÁSSARO","PROPRIETÁRIO","ORIGEM","CANTOS","PONTOS"]
["1º","PADRINHO","LI","BARBACENA",194,30,null,"1º","AMOSTRADINHO","PAULINHO","TRÊS RIOS",206,30,null,"1º","PADRINHO","LI","BARBACENA",195,30,null,"1º","LOCOMOTIVA","CLOVIS","TRÊS RIOS",227,30,null,"1º","COISA LINDA","JUNINHO/MARCÃO","TRÊS RIOS",241,30]
["2º","MALUQUINHO","GIBA","TRÊS RIOS",153,28,null,"2º","PADRINHO","LI","BARBACENA",200,28,null,"2º","ASTRO","MARCELO","SANTOS DUMONT",187,28,null,"2º","PADRINHO","LI","BARBACENA",205,28,null,"2º","COMENDADOR","LUCAS","MATIAS BARBOSA",195,28]
["3º","PEPE","EULER","TRÊS RIOS",151,26,null,"3º","MALUQUINHO","GIBA","TRÊS RIOS",200,26,null,"3º","MAGNÍFICO","CH FAMÍLIA MINGAL","PARAÍBA DO SUL",176,26,null,"3º","FAKE NEWS","PEDRO/GUSTAVO","JUIZ DE FORA",197,26,null,"3º","CHUCALHO DE COBRA","LUCIMAR/LUIZ HENRIQUE","TRÊS RIOS",178,26]
["4º","CHUCALHO DE COBRA","LUCIMAR/LUIZ HENRIQUE","TRÊS RIOS",148,24,null,"4º","CHUCALHO DE COBRA","LUCIMAR/LUIZ HENRIQUE","TRÊS RIOS",184,24,null,"4º","PEPE","EULER","TRÊS RIOS",174,24,null,"4º","CHUCALHO DE COBRA","LUCIMAR/LUIZ HENRIQUE","TRÊS RIOS",161,24,null,"4º","FANTASMA","CLOVIS/RODRIGO","TRÊS RIOS",175,24]
["5º","REI DO FURDUNÇO","WILLIAN","TRÊS RIOS",130,23,null,"5º","FURIOSO","LI","BARBACENA",168,23,null,"5º","FURIOSO","LI","BARBACENA",162,23,null,"5º","PEPE","EULER","TRÊS RIOS",154,23,null,"5º","LOCOMOTIVA","CLOVIS/RODRIGO","TRÊS RIOS",172,23]
["6º","LACOSTE","GUSTAVO/GILSON","T. RIOS/S.DUMONT",129,22,null,"6º","GEMADA","LI","BARBACENA",160,22,null,"6º","REI DO FURDUNCO","WILLIAN","TRÊS RIOS",159,22,null,"6º","BOTA CARA","GABRIEL/DJ RODRIGO","PARAÍBA DO SUL",152,22,null,"6º","HERÓI DE GUERRA","BRUNO/RODRIGO","PETRÓPOLIS",167,22]
["7º","PEDRA","GABRIEL","PETRÓPOLIS",111,21,null,"7º","PEPE","EULER","TRÊS RIOS",160,21,null,"7º","MARRETA","ROMÁRIO","PETRÓPOLIS",157,21,null,"7º","TROVÃO","LUCIMAR/LUIZ HENRIQUE","TRÊS RIOS",147,21,null,"7º","RAIO","LUIS/ZECA","CHIADOR",165,21]
["8º","CORINGA","VALÉRIO","PETRÓPOLIS",110,20,null,"8º","FARÃO","ANDRÉ/ERICK","MATIAS BARBOSA/P. DO SUL",157,20,null,"8º","PINTA NEGRA","RATINHO","VALENÇA",150,20,null,"8º","ERUPÇÃO","RAUANI VALLE","PETRÓPOLIS",145,20,null,"8º","BIGODINHO","PIA","SANTOS DUMONT",154,20]
["9º","TESOURINHA","SERGINHO","JUIZ DE FORA",109,19,null,"9º","FARRAPO DOIDO","RODRIGO/BRUNO","PETRÓPOLIS",155,19,null,"9º","FARRAPO DOIDO","RODRIGO/BRUNO","PETRÓPOLIS",150,19,null,"9º","COISA LINDA","JUNINHO/MARCÃO","TRÊS RIOS",140,19,null,"9º","MAGNÍFICO","CH FAMÍLIA MINGAL","PARAÍBA DO SUL",153,19]
["10º","JOIA RARA","JUNINHO","TRÊS RIOS",109,18,null,"10º","ABUTRE","JOÃO MARCOS","AREAL",145,18,null,"10º","PROFETA","LUCAS","MATIAS BARBOSA",148,18,null,"10º","CLONE","GIBA","TRÊS RIOS",134,18,null,"10º","TENEBROSO","JONAS RICARDO","TRÊS RIOS",151,18]
["11º","TAURUS","DOUGLAS","JUIZ DE FORA",104,17,null,"11º","ASTRO","MARCELO","SANTOS DUMONT",143,17,null,"11º","MAXIMUS","BRUNO","?",136,17,null,"11º","REI DO FURDUNCO","WILLIAN","TRÊS RIOS",132,17,null,"11º","PEPE","EULER","TRÊS RIOS",150,17]
["12º","FARRAPO DOIDO","RODRIGO/BRUNO","PETRÓPOLIS",99,16,null,"12º","KAISER","RODRIGO/BRUNO","PETRÓPOLIS",142,16,null,"12º","CORINGA","VALÉRIO","PETRÓPOLIS",134,16,null,"12º","MALUQUINHO","GIBA","TRÊS RIOS",132,16,null,"12º","JOIA RARA","JUNINHO","TRÊS RIOS",148,16]
["13º","JHON NETO","JEFFERSON","PARAÍBA DO SUL",99,15,null,"13º","JHON NETO","JEFFERSON/MATHEUS","PARAÍBA DO SUL",142,15,null,"13º","EL TORO","IGOR","PARAÍBA DO SUL",126,15,null,"13º","DILÚVIO","REINALDO","BARBACENA",128,15,null,"13º","PATO DONALD","REGINALDO","PETRÓPOLIS",147,15]
["14º","ESTOPIM","?","PETRÓPOLIS",97,14,null,"14º","REI DO FURDUNÇO","WILLIAN","TRÊS RIOS",142,14,null,"14º","MALVADÃO","BRUNO/RODRIGO","PETRÓPOLIS",123,14,null,"14º","JHON NETO","JEFFERSON/MATHEUS","PARAÍBA DO SUL",127,14,null,"14º","ABUSADO","ELVIS","JUIZ DE FORA",146,14]
["15º","JAMELÃO","CH FAMÍLIA MINGAL","PARAÍBA DO SUL",93,13,null,"15º","MALVADÃO","BRUNO/RODRIGO","PETRÓPOLIS",140,13,null,"15º","GEMADA","LI","BARBACENA",118,13,null,"15º","MAGNÍFICO","CH FAMÍLIA MINGAL","PARAÍBA DO SUL",126,13,null,"15º","BICO BRANCO","LOIRIN","PARAÍBA DO SUL",145,13]
["16º","RABO DE PEIXE","LUCIMAR/LUIZ HENRIQUE","TRÊS RIOS",93,null,null,"16º","CORINGA","VALÉRIO","PETRÓPOLIS",123,null,null,"16º","MAGO","KLEBER/BRUNO","RIO DE JANEIRO",115,null,null,"16º","ILUMINADO","CÉLIO PREVITALLI","PETRÓPOLIS",120,null,null,"16º","REI DO FURDUNCO","WILLIAN","TRÊS RIOS",145]
["17º","DILÚVIO","REINALDO","BARBACENA",91,null,null,"17º","500 MILHAS","FLÁVIO","MIGUEL PEREIRA",121,null,null,"17º","COISA LINDA","JUNINHO/MARCÃO","TRÊS RIOS",114,null,null,"17º","BERLIM","EDER","TRÊS RIOS",115,null,null,"17º","TZAR","LUIS/ZECA","CHIADOR",140]
["18º","TROVÃO","LUCIMAR/LUIZ HENRIQUE","TRÊS RIOS",89,null,null,"18º","RENASCER","RÔMULO","SANTOS DUMONT",120,null,null,"18º","LOCOMOTIVA","CLOVIS","TRÊS RIOS",113,null,null,"18º","PATO DONALD","REGINALDO","PETRÓPOLIS",114,null,null,"18º","ATHOS","DANIEL","SANTOS DUMONT",139]
["19º","TALISMÃ","HENRIQUE","ANTA",79,null,null,"19º","JOIA RARA","JUNINHO","TRÊS RIOS",120,null,null,"19º","JHON NETO","JEFFERSON/MATHEUS","PARAÍBA DO SUL",111,null,null,"19º","FANTASMA","CLOVIS","TRÊS RIOS",114,null,null,"19º","FAIXA PRETA","GABRIEL PAIVA/WILIAN","PARAÍBA DO SUL",132]
["20º","OUSADIA","EDIMAR LEITEIRO","PETRÓPOLIS",73,null,null,"20º","ZÉ INACIO","EULER","TRÊS RIOS",120,null,null,"20º","PEDRA","GABRIEL","PETRÓPOLIS",101,null,null,"20º","PROFETA","LUCAS","MATIAS BARBOSA",111,null,null,"20º","BAILARINO","MATHEUS/FELIPE","MATIAS BARBOSA",129]
["21º","EL TORO","IGOR","PARAÍBA DO SUL",72,null,null,"21º","PEDRA","GABRIEL","PETRÓPOLIS",118,null,null,"21º","AK TROVÃO","ALEX LAMA","PARAÍBA DO SUL",100,null,null,"21º","PATRIOTA","PIA","SANTOS DUMONT",107,null,null,"21º","MALVADÃO","BRUNO BRANCO","PETRÓPOLIS",117]
["22º","BRAHMA","TIAGUINHO","JUIZ DE FORA",72,null,null,"22º","PRATA DA CASA","PIA","SANTOS DUMONT",117,null,null,"22º","JAMELÃO","CH FAMÍLIA MINGAL","PARAÍBA DO SUL",94,null,null,"22º","VENENO","GABRIEL/LEANDRO","PARAÍBA DO SUL",104,null,null,"22º","CAVIAR","BRUNO","TRÊS RIOS",117]
["23º","007","LEONEL","SANTOS DUMONT",70,null,null,"23º","TESOURINHA","SERGINHO","JUIZ DE FORA",105,null,null,"23º","CLONE","GIBA","TRÊS RIOS",90,null,null,"23º","KAISER","RODRIGO/BRUNO","PETRÓPOLIS",97,null,null,"23º","007","LEONEL","SANTOS DUMONT",115]
["24º","RENASCER","RÔMULO","SANTOS DUMONT",63,null,null,"24º","ZORRO","LEONEL","SANTOS DUMONT",103,null,null,"24º","PANTERA","EDER","TRÊS RIOS",89,null,null,"24º","CICATRIZ","DOUGLAS","JUIZ DE FORA",86,null,null,"24º","FARRAPO DOIDO","RODRIGO/BRUNO","PETRÓPOLIS",110]
["25º","ZUMBI","FAMÍLIA HONORATO","PARAÍBA DO SUL",63,null,null,"25º","RABO DE PEIXE","LUCIMAR/LUIZ HENRIQUE","TRÊS RIOS",103,null,null,"25º","CARIMBO","LI","BARBACENA",74,null,null,"25º","LACOSTE","GILSON/GUSTAVO","S. DUMONT/TRÊS RIOS",83,null,null,"25º","JAMELÃO","CH FAMÍLIA MINGAL","PARAÍBA DO SUL",110]
["26º","ILUMINADO CFP","CÉLIO PREVITALLI","PETRÓPOLIS",50,null,null,"26º","M10","FAMÍLIA MINGAL","PARAÍBA DO SUL",102,null,null,"26º","DUBAI","VALÉRIO","PETRÓPOLIS",64,null,null,"26º","RENASCER","PIA/ROMULO","SANTOS DUMONT",74,null,null,"26º","COYOTE","LUIS/ZECA","CHIADOR",105]
["27º",null,null,null,null,null,null,"27º","EL TORO","IGOR","PARAÍBA DO SUL",101,null,null,"27º","CARRASCO","RAFAEL POPÓ","TRÊS RIOS",64,null,null,"27º","JAMELÃO","CH FAMÍLIA MINGAL","PARAÍBA DO SUL",48,null,null,"27º","FURIA","JAJA","JUIZ DE FORA",100]
["28º",null,null,null,null,null,null,"28º","DILÚVIO","REINALDO","BARBACENA",98,null,null,"28º","ZÉ INACIO","EULER","TRÊS RIOS",60,null,null,"28º","POPAYE","LEANDRO","TRÊS RIOS",36,null,null,"28º","BERLIM","EDER","TRÊS RIOS",96]
["29º",null,null,null,null,null,null,"29º","MAGNÍFICO","CH FAMÍLIA MINGAL","PARAÍBA DO SUL",96,null,null,"29º","CAMARO","SILAS FLÁVIO","TRÊS RIOS",50,null,null,"29º","CONTRA PESO","PIA","SANTOS DUMONT",35,null,null,"29º","MALUQUINHO","GIBA","TRÊS RIOS",92]
["30º",null,null,null,null,null,null,"30º","SHOW DO MILHÃO","DANIEL","SANTOS DUMONT",95,null,null,"30º","POPAYE","LEANDRO","TRÊS RIOS",29,null,null,"30º","007","LEONEL","SANTOS DUMONT",20,null,null,"30º","ZORRO","LEONEL","SANTOS DUMONT",90]
["31º",null,null,null,null,null,null,"31º","BISTURI","GABRIEL/DJ RODRIGO","PARAÍBA DO SUL",93,null,null,"31º","ALMIRANTE","JONAS SAMPAIO","PARAÍBA DO SUL",25,null,null,"31º",null,null,null,null,null,null,"31º","SINISTRO","MATEUS MEDEIROS","PARAÍBA DO SUL",87]
["32º",null,null,null,null,null,null,"32º","PATRÃO","FAMÍLIA MINGAL","PARAÍBA DO SUL",86,null,null,"32º",null,null,null,null,null,null,"32º",null,null,null,null,null,null,"32º","PATRIOTA","PIA","SANTOS DUMONT",77]
["33º",null,null,null,null,null,null,"33º","CLONE","GIBA","TRÊS RIOS",83,null,null,"33º",null,null,null,null,null,null,"33º",null,null,null,null,null,null,"33º","VENON","MURILO","TRÊS RIOS",77]
["34º",null,null,null,null,null,null,"34º","BLACK KING","LUIZ CARLOS","PETRÓPOLIS",82,null,null,"34º",null,null,null,null,null,null,"34º",null,null,null,null,null,null,"34º","LOBO MAU","FERNANDO SIMÃO","PETRÓPOLIS",76]
["35º",null,null,null,null,null,null,"35º","CARRASCO","RAFAEL NASCIMENTO","TRÊS RIOS",78,null,null,"35º",null,null,null,null,null,null,"35º",null,null,null,null,null,null,"35º","TERRA","JOÃO PEDRO","PARAÍBA DO SUL",54]
["36º",null,null,null,null,null,null,"36º","CARIMBO","LI","BARBACENA",74,null,null,"36º",null,null,null,null,null,null,"36º",null,null,null,null,null,null,"36º","SAGA","MARCOS VINÍCIUS","PARAÍBA DO SUL",50]
["37º",null,null,null,null,null,null,"37º","ALMIRANTE","JONAS SAMPAIO","PARAÍBA DO SUL",47,null,null,"37º",null,null,null,null,null,null,"37º",null,null,null,null,null,null,"37º"]
["38º",null,null,null,null,null,null,"38º","RELÂMPAGO","LI","BARBACENA",45,null,null,"38º",null,null,null,null,null,null,"38º",null,null,null,null,null,null,"38º"]
["39º",null,null,null,null,null,null,"39º",null,null,null,null,null,null,"39º",null,null,null,null,null,null,"39º",null,null,null,null,null,null,"39º"]
["40º",null,null,null,null,null,null,"40º",null,null,null,null,null,null,"40º",null,null,null,null,null,null,"40º",null,null,null,null,null,null,"40º"]

{"sheet":"set2025","index":4,"n_rows":42,"n_cols":28,"rows_kept":42,"cut":false,"hidden":false,"merged":[[0,21,0,27],[0,0,0,5],[0,7,0,12],[0,14,0,19]]}
["07/09/2025 (DOMINGO)",null,null,null,null,null,null,"14/09/2025 (DOMINGO)",null,null,null,null,null,null,"21/09/2025 (DOMINGO)",null,null,null,null,null,null,"28/09/2025 (DOMINGO)"]
["POS.","PÁSSARO","PROPRIETÁRIO","ORIGEM","CANTOS","PONTOS",null,"POS.","PÁSSARO","PROPRIETÁRIO","ORIGEM","CANTOS","PONTOS",null,"POS.","PÁSSARO","PROPRIETÁRIO","ORIGEM","CANTOS","PONTOS",null,"POS.","PÁSSARO","PROPRIETÁRIO","ORIGEM","VASS.","CANTOS","PONTOS"]
["1º","FORASTEIRO","WL FAMÍLIA MINGAL","PARAÍBA DO SUL",191,30,null,"1º","COISA LINDA","JUNINHO","TRÊS RIOS",212,30,null,"1º","MUTLEY","MARCÃO","JUIZ DE FORA",278,30,null,"1º","MUTLEY","MARCÃO","JUIZ DE FORA",233,242,30]
["2º","FANTASMA","CLOVIS/RODRIGO","TRÊS RIOS",186,28,null,"2º","AMOSTRADINHO","PAULINHO","TRÊS RIOS",211,28,null,"2º","MAGO","SILVIO","SANTOS DUMONT",209,28,null,"2º","FANTASMA","CLOVIS/RODRIGO","TRÊS RIOS",168,190,28]
["3º","PADRINHO","LI","BARBACENA",179,26,null,"3º","FANTASMA","CLOVIS/RODRIGO","TRÊS RIOS",205,26,null,"3º","FANTASMA","CLOVIS/RODRIGO","TRÊS RIOS",183,26,null,"3º","MENINO DO MORRO","VLADEMIR/GABRIEL","PARAÍBA DO SUL",92,189,26]
["4º","FURIOSO","LI","BARBACENA",173,24,null,"4º","PADRINHO","LI","BARBACENA",199,24,null,"4º","BAIANO","REINALDO","JUIZ DE FORA",174,24,null,"4º","CAVIAR","BRUNO","TRÊS RIOS",113,182,24]
["5º","LOCOMOTIVA","CLOVIS/RODRIGO","TRÊS RIOS",162,23,null,"5º","FAKE NEWS","PEDRO/GUSTAVO","JUIZ DE FORA",198,23,null,"5º","XODO","GUSTAVO/GILSON","TRÊS RIOS/SANTOS DUMONT",150,23,null,"5º","CAPOEIRA","BAIANO","VASSOURAS",96,182,23]
["6º","MAGO","RAMON DINIZ/YGOR TARDELLI","ANTA",161,22,null,"6º","REI DO FURDUNCO","WILLIAN","TRÊS RIOS",188,22,null,"6º","PRESTO","SÍLVIO","SANTOS DUMONT",148,22,null,"6º","MALUCO","ANDRÉ/ERICK","PARAÍBA DO SUL/M. BARBOSA",168,180,22]
["7º","GEMADA","LI","BARBACENA",156,21,null,"7º","FURIOSO","LI","BARBACENA",182,21,null,"7º","AMOSTRADINHO","PAULINHO","TRÊS RIOS",148,21,null,"7º","FORASTEIRO","WL FAMÍLIA MINGAL","PARAÍBA DO SUL",83,166,21]
["8º","MAGNÍFICO","CH FAMÍLIA MINGAL","PARAÍBA DO SUL",156,20,null,"8º","GAROTO","BRUNO","TRÊS RIOS",182,20,null,"8º","ALMIRANTE","JONAS SAMPAIO","PARAÍBA DO SUL",145,20,null,"8º","IMPÉRIO","LUIZINHO","PETRÓPOLIS",107,158,20]
["9º","CHUCALHO DE COBRA","LUCIMAR/LUIZ HENRIQUE","TRÊS RIOS",154,19,null,"9º","JOIA RARA","JUNINHO","TRÊS RIOS",180,19,null,"9º","GAGUINHO","FABINHO","TRÊS RIOS",134,19,null,"9º","JHON NETO","MATHEUS/JEFERSON","PARAÍBA DO SUL",78,152,19]
["10º","BIGODINHO","PIA","SANTOS DUMONT",153,18,null,"10º","REI DA RUA","ANDRÉ AGUIAR","PARAÍBA DO SUL",177,18,null,"10º","PIVETE","GUSTAVO/GILSON","TRÊS RIOS/SANTOS DUMONT",132,18,null,"10º","CEIFADOR","BRUNO/RODRIGO","PETRÓPOLIS",92,151,18]
["11º","COMENDADOR","LUCAS","MATIAS BARBOSA",141,17,null,"11º","MAGO","RAMON/YGOR","ANTA",173,17,null,"11º","SAGACIDADE","FLÁVIO JR","JUIZ DE FORA",128,17,null,"11º","HERÓI DE GUERRA","BRUNO/RODRIGO","PETRÓPOLIS",51,151,17]
["12º","AMOSTRADINHO","PAULINHO/ARTHUR","TRÊS RIOS",134,16,null,"12º","BIGODINHO","PIA","SANTOS DUMONT",164,16,null,"12º","JAGUAR","JUNINHO/RUAN","TRÊS RIOS/MAR DE ESPANHA",125,16,null,"12º","FURIOSO","LI","BARBACENA",128,150,16]
["13º","REI DO FURDUNÇO","WILLIAN","TRÊS RIOS",132,15,null,"13º","CHUCALHO DE COBRA","LUCIMAR/LUIZ HENRIQUE","TRÊS RIOS",163,15,null,"13º","VINGADOR","SÍLVIO","SANTOS DUMONT",122,15,null,"13º","PEGA FIRME","ÍTALO SANTOS","PARAÍBA DO SUL",95,147,15]
["14º","CHARADA","HENRIQUE","PARAÍBA DO SUL",130,14,null,"14º","LOCOMOTIVA","CLOVIS/RODRIGO","TRÊS RIOS",160,14,null,"14º","CLONE","GIBA","TRÊS RIOS",120,14,null,"14º","POLÊMICO","DHACO","PARAÍBA DO SUL",81,138,14]
["15º","FARRAPO DOIDO","RODRIGO/BRUNO","PETRÓPOLIS",125,13,null,"15º","COMENDADOR","LUCAS","MATIAS BARBOSA",157,13,null,"15º","BLINDADO","SAMUEL","SANTOS DUMONT",116,13,null,"15º","JAGUAR","JUNINHO/RUAN","TRÊS RIOS/MAR DE ESPANHA",156,137,13]
["16º","CAVIAR","BRUNO","TRÊS RIOS",124,null,null,"16º","CLONE","GIBA","TRÊS RIOS",157,null,null,"16º","LOCOMOTIVA","CLOVIS/RODRIGO","TRÊS RIOS",116,null,null,"16º","CHUCALHO DE COBRA","LUCIMAR/LUIZ HENRIQUE","TRÊS RIOS",91,136]
["17º","FAIXA PRETA","GABRIEL/WL FAMÍLIA MINGAL","PARAÍBA DO SUL",120,null,null,"17º","RELÂMPAGO","LI","BARBACENA",156,null,null,"17º","SINISTRO","MATEUS MEDEIROS","PARAÍBA DO SUL",113,null,null,"17º","COMENDADOR","LUCAS","MATIAS BARBOSA",150,134]
["18º","BAIANO","JEFERSON","PARAÍBA DO SUL",114,null,null,"18º","CEIFADOR","LI","BARBACENA",143,null,null,"18º","TESOURINHA","SERGINHO","JUIZ DE FORA",112,null,null,"18º","FARRAPO DOIDO","RODRIGO/BRUNO","PETRÓPOLIS",79,134]
["19º","JHON NETO","JEFFERSON/MATHEUS","PARAÍBA DO SUL",111,null,null,"19º","SPOCK","DANIEL/TIM","JUIZ DE FORA",137,null,null,"19º","OURO FINO","LEANDRO","TRÊS RIOS",110,null,null,"19º","JOVEM TALENTO","PEDRO/GUSTAVO","JUIZ DE FORA",105,133]
["20º","ESPETÁCULO","FAMÍLIA HONORATO","PARAÍBA DO SUL",110,null,null,"20º","BYD","RUAN","MAR DE ESPANHA",136,null,null,"20º","BERLIM","EDER","TRÊS RIOS",110,null,null,"20º","LOCOMOTIVA","CLOVIS/RODRIGO","TRÊS RIOS",58,133]
["21º","GAGUINHO","FABINHO","TRÊS RIOS",107,null,null,"21º","JHON NETO","JEFFERSON/MATHEUS","PARAÍBA DO SUL",135,null,null,"21º","MALUQUINHO","GIBA","TRÊS RIOS",100,null,null,"21º","BAIANO","REINALDO","JUIZ DE FORA",141,130]
["22º","BERLIM","EULER","TRÊS RIOS",105,null,null,"22º","PIVETE","GILSON/GUSTAVO","S. DUMONT/TRÊS RIOS",133,null,null,"22º","MINOTAURO","HENRIQUE","ANTA",98,null,null,"22º","VENENO","RUANNYTO SANTOS","DUMONT",66,130]
["23º","CLONE","GIBA","TRÊS RIOS",103,null,null,"23º","ABUSADO","ELVIS","JUIZ DE FORA",132,null,null,"23º","PEGA FIRME","ITALO SANTOS","PARAÍBA DO SUL",97,null,null,"23º","COWBOY","SILVAN","JUIZ DE FORA",114,125]
["24º","HERÓI DE GUERRA","RODRIGO/BRUNO","PETRÓPOLIS",102,null,null,"24º","DOLLAR","DANIEL LEAL","PARAÍBA DO SUL",131,null,null,"24º","REBOLIÇO","NEI","PARAÍBA DO SUL",72,null,null,"24º","RENASCER","RÔMULO/PIÁ","SANTOS DUMONT",62,125]
["25º","TALISMÃ","HENRIQUE","ANTA",98,null,null,"25º","BALINHA","WL FAMÍLIA MINGAL","PARAÍBA DO SUL",127,null,null,"25º","JHON NETO","JEFFERSON/MATHEUS","PARAÍBA DO SUL",58,null,null,"25º","REI DO FURDUNCO","WILLIAN","TRÊS RIOS",101,114]
["26º","CASCA DE BALA","AMILTON","JUIZ DE FORA",97,null,null,"26º","PINTA NEGRA","RATINHO","VALENÇA",120,null,null,"26º","CAMPEÃO","FÁBIO PEREIRA","TRÊS RIOS",52,null,null,"26º","?","LUCIMAR/LUIZ HENRIQUE","TRÊS RIOS",75,114]
["27º","JAMELÃO","CH FAMÍLIA MINGAL","PARAÍBA DO SUL",94,null,null,"27º","PANTERA","PABLO","PETRÓPOLIS",119,null,null,"27º","WOLVERINE","XANDÃO","PARAÍBA DO SUL",51,null,null,"27º","REALEZA","VINÍCIUS","AREAL",72,113]
["28º","CARRASCO","DANILO MOREIRA","TRÊS RIOS",93,null,null,"28º","CARRASCO","DANILO MOREIRA","TRÊS RIOS",115,null,null,"28º",null,null,null,null,null,null,"28º","VENON","MURILO","TRÊS RIOS",50,103]
["29º","TESOURINHA","SERGINHO","JUIZ DE FORA",92,null,null,"29º","KAISER","RODRIGO/BRUNO","PETRÓPOLIS",106,null,null,"29º",null,null,null,null,null,null,"29º","BIPOLAR","VINY/ERICK","MATIAS BARBOSA",101,102]
["30º","PIRATA","GABRIEL FERREIRA","PETRÓPOLIS",89,null,null,"30º","FAIXA PRETA","GABRIEL/WL FAMÍLIA MINGAL","PARAÍBA DO SUL",106,null,null,"30º",null,null,null,null,null,null,"30º","FEDERAL","SILVAN","JUIZ DE FORA",85,101]
["31º","BAILARINO","MATHEUS/FELIPE","MATIAS BARBOSA",88,null,null,"31º","SUB ZERO","CH FAMÍLIA MINGAL","PARAÍBA DO SUL",95,null,null,"31º",null,null,null,null,null,null,"31º","PITBULL","DIEGO NEVES","JUIZ DE FORA",84,97]
["32º","WOLVERINE","XANDÃO","PARAÍBA DO SUL",87,null,null,"32º","OURO FINO","LEANDRO","TRÊS RIOS",94,null,null,"32º",null,null,null,null,null,null,"32º","GAGUINHO","JUNINHO","TRÊS RIOS",74,94]
["33º","FURIA","JAJA","JUIZ DE FORA",84,null,null,"33º","FILHOTE","JULIN","PARAÍBA DO SUL",88,null,null,"33º",null,null,null,null,null,null,"33º","RAGNAR","ÍNDIO","PETRÓPOLIS",64,90]
["34º","VENON","MURILO","TRÊS RIOS",78,null,null,"34º","WOLVERINE","XANDÃO","PARAÍBA DO SUL",87,null,null,"34º",null,null,null,null,null,null,"34º","CARRASCO","DANILO MOREIRA","TRÊS RIOS",110,89]
["35º","BALA PERDIDA","GILSON/GUSTAVO","SANTOS DUMONT",38,null,null,"35º","ALMIRANTE","JONAS SAMPAIO","PARAÍBA DO SUL",75,null,null,"35º",null,null,null,null,null,null,"35º","BAILARINO","MATHEUS/FELIPE","MATIAS BARBOSA",105,76]
["36º","PIT BULL","DIEGO","JUIZ DE FORA",38,null,null,"36º","DO BRONX","PABLO","PETRÓPOLIS",58,null,null,"36º",null,null,null,null,null,null,"36º","THANOS","SILAS FLÁVIO","TRÊS RIOS",76,72]
["37º","PATRIOTA","PIA","SANTOS DUMONT",25,null,null,"37º","RARIDADE","GUSTAVO/JHONATA","PARAÍBA DO SUL",54,null,null,"37º",null,null,null,null,null,null,"37º","SOBREVIVENTE","WL FAMÍLIA MINGAL","PARAÍBA DO SUL",51,72]
["38º",null,null,null,null,null,null,"38º","VIOLENTO","WALTER MORELI","PETRÓPOLIS",47,null,null,"38º",null,null,null,null,null,null,"38º","BISON","NATHAN","LEVY GASPARIAN",90,66]
["39º",null,null,null,null,null,null,"39º","MOLEQUE","RAFAEL","PARAÍBA DO SUL",41,null,null,"39º",null,null,null,null,null,null,"39º","GUERREIRO","ANTÔNIO MENEGUIT","CACHOEIRAS DE MACACU",51,60]
["40º",null,null,null,null,null,null,"40º",null,null,null,null,null,null,"40º",null,null,null,null,null,null,"40º","ENIGMA","DUDU","TRÊS RIOS",119,46]

{"sheet":"out2025","index":5,"n_rows":42,"n_cols":27,"rows_kept":42,"cut":false,"hidden":false,"merged":[[0,0,0,5],[0,7,0,12],[0,14,0,19],[0,21,0,26]]}
["05/10/2025 (DOMINGO)",null,null,null,null,null,null,"12/10/2025 (DOMINGO)",null,null,null,null,null,null,"19/10/2025 (DOMINGO)",null,null,null,null,null,null,"26/10/2025 (DOMINGO)"]
["POS.","PÁSSARO","PROPRIETÁRIO","ORIGEM","CANTOS","PONTOS",null,"POS.","PÁSSARO","PROPRIETÁRIO","ORIGEM","CANTOS","PONTOS",null,"POS.","PÁSSARO","PROPRIETÁRIO","ORIGEM","CANTOS","PONTOS",null,"POS.","PÁSSARO","PROPRIETÁRIO","ORIGEM","CANTOS","PONTOS"]
["1º","FURIOSO","LI","BARBACENA",218,30,null,"1º","MUTLEY","MARCÃO","JUIZ DE FORA",271,30,null,"1º","FARAÓ","ANDRÉ LUÍS","PARAÍBA DO SUL",210,30,null,"1º","FANTASMA","CLÓVIS/RODRIGO","TRÊS RIOS",196,30]
["2º","FORASTEIRO","WL FAMÍLIA MINGAL","PARAÍBA DO SUL",208,28,null,"2º","MAGO","SÍLVIO","SANTOS DUMONT",235,28,null,"2º","FAKE NEWS","MOACIR/MARCOS","GUARARÁ",209,28,null,"2º","FAKE NEWS","MOACIR/MARCOS","GUARARÁ",192,28]
["3º","PRESTO","SÍLVIO","SANTOS DUMONT",205,26,null,"3º","MALUCO","ANDRÉ/ERICK","PARAÍBA DO SUL/M. BARBOSA",206,26,null,"3º","FANTASMA","CLÓVIS/RODRIGO","TRÊS RIOS",183,26,null,"3º","PÉROLA NEGRA","ROMÁRIO OLIVEIRA","PETRÓPOLIS",182,26]
["4º","MALUCO","ANDRÉ/ERICK","PARAÍBA DO SUL",204,24,null,"4º","TIK TOK","RAFAEL SOUZA","BARBACENA",175,24,null,"4º","JHON NETO","MATHEUS/JÉFERSON","PARAÍBA DO SUL",180,24,null,"4º","LOCOMOTIVA","CLÓVIS/RODRIGO","TRÊS RIOS",178,24]
["5º","PADRINHO","LI","BARBACENA",191,23,null,"5º","CAVIAR","BRUNO","TRÊS RIOS",166,23,null,"5º","DO BRONX","PABLO","ITAIPAVA",177,23,null,"5º","CAVIAR","BRUNO","TRÊS RIOS",156,23]
["6º","MUTLEY","MARCÃO","JUIZ DE FORA",188,22,null,"6º","MENINO DO MORRO","VLADEMIR/GABRIEL","PARAÍBA DO SUL",157,22,null,"6º","CAVIAR","BRUNO","TRÊS RIOS",167,22,null,"6º","PANTERA NEGRA","PABLO","ITAIPAVA",152,22]
["7º","CORINGA","ERICK/JOVEM","MATIAS BARBOSA",187,21,null,"7º","GAGUINHO","JUNINHO","TRÊS RIOS",149,21,null,"7º","CHUCALHO DE COBRA","LUCIMAR/LUIZ HENRIQUE","TRÊS RIOS",161,21,null,"7º","PEGA FIRME","ITALO SANTOS","PARAÍBA DO SUL",152,21]
["8º","MAGO","SÍLVIO","SANTOS DUMONT",175,20,null,"8º","ESPOLETA","RAFAEL SOUZA","NITERÓI",145,20,null,"8º","PIT BULL","DIEGO NEVES","JUIZ DE FORA",161,20,null,"8º","DO BRONX","PABLO","ITAIPAVA",151,20]
["9º","CAVIAR","BRUNO","TRÊS RIOS",171,19,null,"9º","FERRARI","CT DOS MOLEQUES","PARAÍBA DO SUL",124,19,null,"9º","JAGUAR","JUNINHO/RUAN","T. RIOS/MAR DE ESPANHA",157,19,null,"9º","DELÍRIO","ROMÁRIO OLIVEIRA","PETRÓPOLIS",143,19]
["10º","CAPOEIRA","BAIANO","VASSOURAS",169,18,null,"10º","PATRÃO","WL FAMÍLIA MINGAL","PARAÍBA DO SUL",120,18,null,"10º","REI DO FURDUNÇO","WILLIAN","TRÊS RIOS",154,18,null,"10º","XODÓ","GUSTAVO/GILSON","TRÊS RIOS/S. DUMONT",138,18]
["11º","SHEIK","JONAS","TRÊS RIOS",165,17,null,"11º","PRESTO","SÍLVIO","SANTOS DUMONT",118,17,null,"11º","JIRAIA","GABRIEL/TIAGO","PARAÍBA DO SUL",151,17,null,"11º","FARRAPO DOIDO","JOÃO MARCOS","AREAL",137,17]
["12º","REI DO FURDUNÇO","WILLIAN","TRÊS RIOS",156,16,null,"12º","IMPÉRIO","LUIZINHO","PETRÓPOLIS",117,16,null,"12º","BMW","CT ALPHA","PARAÍBA DO SUL",147,16,null,"12º","PODEROSO CHEFINHO","RODRIGO/BRUNO","PETRÓPOLIS",127,16]
["13º","FARRAPO DOIDO","RODRIGO/BRUNO","PETRÓPOLIS",153,15,null,"13º","CORONEL","DANIEL/LUCAS","JUIZ DE FORA",115,15,null,"13º","AMOSTRADINHO","PAULINHO/ARTHUR","TRÊS RIOS",145,15,null,"13º","REALEZA","VINÍCIUS","AREAL",125,15]
["14º","FANTASMA","CLÓVIS/RODRIGO","TRÊS RIOS",153,14,null,"14º","PEGA FIRME","ITALO SANTOS","PARAÍBA DO SUL",114,14,null,"14º","BELGA","RODRIGO/BRUNO","PETRÓPOLIS",140,14,null,"14º","IMPERADOR","GUSTAVO/GILSON","TRÊS RIOS/S. DUMONT",123,14]
["15º","VINGADOR","SÍLVIO","SANTOS DUMONT",151,13,null,"15º","REI DAVI","IGOR","PARAÍBA DO SUL",113,13,null,"15º","IMPÉRIO","LUIZINHO","PETRÓPOLIS",133,13,null,"15º","BISON","NATHAN","LEVY GASPARIAN",120,13]
["16º","COPACABANA","LUIZ","JUIZ DE FORA",151,null,null,"16º","JAMELÃO","CH FAMÍLIA MINGAL","PARAÍBA DO SUL",112,null,null,"16º","POLÊMICO","DHACO","PARAÍBA DO SUL",129,null,null,"16º","MAGO NEGRO","CLÓVIS/RODRIGO","TRÊS RIOS",119]
["17º","IFOOD","YURI ALVES","MATIAS BARBOSA",147,null,null,"17º","GUERREIRO","PAULINHO","TRÊS RIOS",110,null,null,"17º","VENON JÚNIOR","MURILO","TRÊS RIOS",126,null,null,"17º","CAMPEÃO","RUAN","TRÊS RIOS",109]
["18º","DOLLAR","CT DOS MOLEQUES","PARAÍBA DO SUL",145,null,null,"18º","VENENO","RUANNYTO","SANTOS DUMONT",108,null,null,"18º","RENASCER","PIA/RÔMULO","SANTOS DUMONT",122,null,null,"18º","OURO FINO","EULER","TRÊS RIOS",104]
["19º","VENENO","LEANDRO/GABRIEL","PARAÍBA DO SUL",139,null,null,"19º","JHON NETO","MATHEUS/JÉFERSON","PARAÍBA DO SUL",105,null,null,"19º","FORASTEIRO","WL FAMÍLIA MINGAL","PARAÍBA DO SUL",118,null,null,"19º","GUERREIRO","PAULINHO/ARTHUR","TRÊS RIOS",103]
["20º","POLÊMICO","DHACO","PARAÍBA DO SUL",125,null,null,"20º","RARIDADE","GUSTAVO/JHONATAN","PARAÍBA DO SUL",100,null,null,"20º","PETER PAN","RAFAEL","PARAÍBA DO SUL",116,null,null,"20º","PIT BULL","DIEGO NEVES","JUIZ DE FORA",100]
["21º","MAGNÍFICO","CH FAMÍLIA MINGAL","PARAÍBA DO SUL",124,null,null,"21º","POLÊMICO","LÁZARO","PARAÍBA DO SUL",96,null,null,"21º","?","LUCIMAR/LUIZ HENRIQUE","TRÊS RIOS",114,null,null,"21º","RESISTENTE","JOSÉ SÉRGIO","PARAÍBA DO SUL",96]
["22º","LOCOMOTIVA","CLÓVIS/RODRIGO","TRÊS RIOS",122,null,null,"22º","PETER PAN","RAFAEL","PARAÍBA DO SUL",94,null,null,"22º","ASTRO","MARCELO","SANTOS DUMONT",110,null,null,"22º","BERLIM","EULER","TRÊS RIOS",96]
["23º","PEGA FIRME","ITALO SANTOS","PARAÍBA DO SUL",121,null,null,"23º","AMOSTRADINHO","PAULINHO/ARTHUR","TRÊS RIOS",87,null,null,"23º","MENINO DO MORRO","VLADEMIR/GABRIEL","PARAÍBA DO SUL",110,null,null,"23º","ADRENALINA","JÚLIO CÉSAR","PETRÓPOLIS",94]
["24º","RABUGENTO","ALEX","PETRÓPOLIS",120,null,null,"24º","BINHA PRETO","EULER","TRÊS RIOS",83,null,null,"24º","CHARADA","GABRIEL MARTINS/JOSENILTON","PARAÍBA DO SUL",107,null,null,"24º","PIVETE","GILSON/GUSTAVO","TRÊS RIOS/S. DUMONT",93]
["25º","PIVETE","GILSON/GUSTAVO","TRÊS RIOS/S. DUMONT",118,null,null,"25º","MAGNÍFICO","CH FAMÍLIA MINGAL","PARAÍBA DO SUL",82,null,null,"25º","ASTRO","CT ALPHA","PARAÍBA DO SUL",106,null,null,"25º","ASTRO","FAMÍLIA MINGAL","PARAÍBA DO SUL",91]
["26º","CARIMBO","LI","BARBACENA",110,null,null,"26º","MÁGICO","FÁBIO","TRÊS RIOS",76,null,null,"26º","CORINGA","GUSTAVO/JHONATA","PARAÍBA DO SUL",105,null,null,"26º","BICO BRANCO","RICARDINHO","PARAÍBA DO SUL",91]
["27º","TREM","CORELIO/RAFAEL","PARAÍBA DO SUL",110,null,null,"27º","BISON","NATHAN","LEVY GASPARIAN",73,null,null,"27º","RAGNAR","?","PETRÓPOLIS",101,null,null,"27º","MACALE","GUSTAVO/GILSON","TRÊS RIOS/S. DUMONT",90]
["28º","FAVELA","CABRITO/GABRIEL","MATIAS BARBOSA",107,null,null,"28º","OURO FINO","EULER","TRÊS RIOS",71,null,null,"28º","SINISTRO","MATEUS MEDEIROS","PARAÍBA DO SUL",81,null,null,"28º","BOLT","RODRIGO/BRUNO","PETRÓPOLIS",90]
["29º","PROFESSOR","RAUANI VALLE","PETRÓPOLIS",106,null,null,"29º","CORINGA","JHONATAN/GUSTAVO","PARAÍBA DO SUL",50,null,null,"29º","DA ROÇA","NATHAN","LEVY GASPARIAN",80,null,null,"29º","MOBRIM","GIBA","TRÊS RIOS",85]
["30º","CATRACA","ADRIANO","JUIZ DE FORA",96,null,null,"30º","DOURADO","JÉFERSON","PARAÍBA DO SUL",38,null,null,"30º","220","LEANDRO/RUAN","PARAÍBA DO SUL",77,null,null,"30º","CHEQUE MATE","EULER","TRÊS RIOS",85]
["31º","PELÉ","WILLIAM","TRÊS RIOS",93,null,null,"31º",null,null,null,null,null,null,"31º","HULK","CH FAMÍLIA MINGAL","PARAÍBA DO SUL",74,null,null,"31º","SELVAGEM","HENRIQUE","TRÊS RIOS",63]
["32º","CIBORG","HENRIQUE","ANTA",83,null,null,"32º",null,null,null,null,null,null,"32º","DECO","CLAUDINHO","TRÊS RIOS",73,null,null,"32º","FUGITIVO","LUCIANO","PARAÍBA DO SUL",60]
["33º","PIKACHU","YURI ALVES","MATIAS",72,null,null,"33º",null,null,null,null,null,null,"33º","BRADDOCK","GUSTAVO/JHONATA","PARAÍBA DO SUL",58,null,null,"33º","PESADELO","HENRIQUE","ANTA",57]
["34º","CORINGA","LECO","PETRÓPOLIS",71,null,null,"34º",null,null,null,null,null,null,"34º","RISADINHA","ARTUR","TRÊS RIOS",56,null,null,"34º"]
["35º","JILÓ","GABRIEL/WL FAMÍLIA MINGAL","PARAÍBA DO SUL",61,null,null,"35º",null,null,null,null,null,null,"35º","PIU PIU","LUIZ GUSTAVO","PARAÍBA DO SUL",52,null,null,"35º"]
["36º","PROFETA","DHACO","PARAÍBA DO SUL",49,null,null,"36º",null,null,null,null,null,null,"36º","MAÇARICO","VALDECIR","PETRÓPOLIS",28,null,null,"36º"]
["37º","WOLVERINE","ARTHUR/PAULINHO","TRÊS RIOS",39,null,null,"37º",null,null,null,null,null,null,"37º","ARQUEIRO","DIEGO NEVES","JUIZ DE FORA",28,null,null,"37º"]
["38º","CAVEIRÃO","RODRIGO","PETRÓPOLIS",33,null,null,"38º",null,null,null,null,null,null,"38º",null,null,null,null,null,null,"38º"]
["39º",null,null,null,null,null,null,"39º",null,null,null,null,null,null,"39º",null,null,null,null,null,null,"39º"]
["40º",null,null,null,null,null,null,"40º",null,null,null,null,null,null,"40º",null,null,null,null,null,null,"40º"]